[Event "Late-Titled-Tuesday-Blitz-June-04-2024"]
[Site "Chess.com"]
[Date "2024.06.04"]
[Round "3"]
[White "Kombinator01"]
[Black "Lennis93"]
[Result "1-0"]
[WhiteElo "2491"]
[BlackElo "2731"]
[TimeControl "180+1"]
[EndTime "14:27:22 PDT"]
[Termination "Kombinator01 won on time"]

1. d4 {[%clk 0:03:00.9]} 1... Nf6 {[%clk 0:02:56.6]} 2. Bf4 {[%clk 0:02:59]}
2... g6 {[%clk 0:02:55.9]} 3. Nc3 {[%clk 0:02:58.8]} 3... Bg7 {[%clk 0:02:56.5]}
4. e4 {[%clk 0:02:59.1]} 4... d6 {[%clk 0:02:57]} 5. Qd2 {[%clk 0:02:59.4]} 5...
a6 {[%clk 0:02:57.5]} 6. Bh6 {[%clk 0:02:59.7]} 6... Bxh6 {[%clk 0:02:57.1]} 7.
Qxh6 {[%clk 0:03:00.6]} 7... Ng4 {[%clk 0:02:57.1]} 8. Qd2 {[%clk 0:02:56.9]}
8... e5 {[%clk 0:02:54.5]} 9. f3 {[%clk 0:02:53.6]} 9... Nf6 {[%clk 0:02:47.6]}
10. Nge2 {[%clk 0:02:45.5]} 10... Qe7 {[%clk 0:02:42.7]} 11. O-O-O {[%clk
0:02:45.2]} 11... b5 {[%clk 0:02:38.5]} 12. g4 {[%clk 0:02:40.8]} 12... b4
{[%clk 0:02:08]} 13. Nd5 {[%clk 0:02:40.6]} 13... Nxd5 {[%clk 0:02:06.9]} 14.
exd5 {[%clk 0:02:41.5]} 14... a5 {[%clk 0:02:05]} 15. Ng3 {[%clk 0:02:37.1]}
15... O-O {[%clk 0:02:01.6]} 16. h4 {[%clk 0:02:31.4]} 16... Nd7 {[%clk
0:01:45]} 17. h5 {[%clk 0:02:27.1]} 17... Bb7 {[%clk 0:01:16]} 18. Bc4 {[%clk
0:01:58.8]} 18... Nb6 {[%clk 0:01:13.7]} 19. Qd3 {[%clk 0:01:59.2]} 19... a4
{[%clk 0:00:51.1]} 20. Ne4 {[%clk 0:01:59.1]} 20... g5 {[%clk 0:00:44.3]} 21.
Ng3 {[%clk 0:01:49.7]} 21... f6 {[%clk 0:00:44]} 22. Nf5 {[%clk 0:01:49.9]}
22... Qd7 {[%clk 0:00:43.8]} 23. Bb5 {[%clk 0:01:46.3]} 23... Qd8 {[%clk
0:00:39.3]} 24. Bc6 {[%clk 0:01:42.3]} 24... Bxc6 {[%clk 0:00:37.9]} 25. dxc6
{[%clk 0:01:43.2]} 25... Kh8 {[%clk 0:00:29.1]} 26. d5 {[%clk 0:01:40.9]} 26...
Ra5 {[%clk 0:00:25.6]} 27. Qe4 {[%clk 0:01:39.9]} 27... b3 {[%clk 0:00:23.8]}
28. cxb3 {[%clk 0:01:38.5]} 28... axb3 {[%clk 0:00:24.7]} 29. a3 {[%clk
0:01:38.7]} 29... Rc5+ {[%clk 0:00:25.2]} 30. Kb1 {[%clk 0:01:39]} 30... Rc4
{[%clk 0:00:26.1]} 31. Qd3 {[%clk 0:01:37.6]} 31... Rf4 {[%clk 0:00:25.8]} 32.
Qxb3 {[%clk 0:01:37.2]} 32... Re8 {[%clk 0:00:19.8]} 33. h6 {[%clk 0:01:37.3]}
33... e4 {[%clk 0:00:19.8]} 34. Ng7 {[%clk 0:01:37]} 34... Rxf3 {[%clk 0:00:16]}
35. Qc2 {[%clk 0:01:30.7]} 35... Re5 {[%clk 0:00:16.6]} 36. Ne6 {[%clk
0:01:28.9]} 36... Qe7 {[%clk 0:00:16.4]} 37. Rhe1 {[%clk 0:01:27.4]} 37... Nxd5
{[%clk 0:00:16.4]} 38. Nd4 {[%clk 0:01:23.7]} 38... Ne3 {[%clk 0:00:14.9]} 39.
Qa4 {[%clk 0:01:11.8]} 39... Nxd1 {[%clk 0:00:14.9]} 40. Rxd1 {[%clk 0:01:12.3]}
40... Rd3 {[%clk 0:00:12.3]} 41. Re1 {[%clk 0:01:09.1]} 41... Kg8 {[%clk
0:00:08.7]} 42. Nf5 {[%clk 0:01:09.7]} 42... Qe8 {[%clk 0:00:07.4]} 43. Qc4+
{[%clk 0:01:08.4]} 43... Qe6 {[%clk 0:00:07.3]} 44. Qa6 {[%clk 0:01:08.2]} 44...
Kf7 {[%clk 0:00:03.7]} 45. Qb7 {[%clk 0:01:07.7]} 45... Rxf5 {[%clk 0:00:02.4]}
46. gxf5 {[%clk 0:01:07]} 46... Qe7 {[%clk 0:00:02.2]} 47. Qc8 {[%clk
0:01:06.5]} 47... e3 {[%clk 0:00:01.2]} 48. Qh8 {[%clk 0:01:06.5]} 1-0

[Event "Late-Titled-Tuesday-Blitz-June-04-2024"]
[Site "Chess.com"]
[Date "2024.06.04"]
[Round "3"]
[White "Bkmzzzzz"]
[Black "ncofre98"]
[Result "0-1"]
[WhiteElo "2415"]
[BlackElo "2589"]
[TimeControl "180+1"]
[EndTime "14:27:22 PDT"]
[Termination "ncofre98 won by checkmate"]

1. e4 {[%clk 0:03:00.9]} 1... c5 {[%clk 0:02:58.7]} 2. Nf3 {[%clk 0:03:00.6]}
2... d6 {[%clk 0:02:58.9]} 3. d4 {[%clk 0:03:00.6]} 3... cxd4 {[%clk 0:02:58.9]}
4. Qxd4 {[%clk 0:03:01.5]} 4... Nf6 {[%clk 0:02:59.1]} 5. Nc3 {[%clk 0:03:00.7]}
5... Nc6 {[%clk 0:02:59.3]} 6. Bb5 {[%clk 0:03:00.7]} 6... Bd7 {[%clk
0:02:57.6]} 7. Qd3 {[%clk 0:03:00.8]} 7... g6 {[%clk 0:02:49.9]} 8. Bg5 {[%clk
0:02:59]} 8... Bg7 {[%clk 0:02:49.9]} 9. O-O-O {[%clk 0:02:58.3]} 9... Ng4
{[%clk 0:02:38.3]} 10. Bh4 {[%clk 0:02:10.7]} 10... O-O {[%clk 0:02:37]} 11. Kb1
{[%clk 0:02:07.9]} 11... Rc8 {[%clk 0:02:33.5]} 12. Nd5 {[%clk 0:02:03.3]} 12...
Re8 {[%clk 0:02:33.1]} 13. h3 {[%clk 0:01:57.6]} 13... Nge5 {[%clk 0:02:32.3]}
14. Nxe5 {[%clk 0:01:58.1]} 14... Nxe5 {[%clk 0:02:32.4]} 15. Qe2 {[%clk
0:01:47]} 15... Rc5 {[%clk 0:02:17.4]} 16. Bxd7 {[%clk 0:01:43.9]} 16... Qxd7
{[%clk 0:02:18.3]} 17. f4 {[%clk 0:01:36.7]} 17... Nc4 {[%clk 0:02:17.4]} 18. c3
{[%clk 0:01:30.3]} 18... b5 {[%clk 0:01:19.9]} 19. Bf2 {[%clk 0:01:16.2]} 19...
Rc6 {[%clk 0:00:47.3]} 20. Bd4 {[%clk 0:01:15.9]} 20... Rb8 {[%clk 0:00:38.2]}
21. Bxg7 {[%clk 0:01:13.5]} 21... Kxg7 {[%clk 0:00:39.1]} 22. b3 {[%clk
0:01:03.5]} 22... Nb6 {[%clk 0:00:31.2]} 23. Kb2 {[%clk 0:01:01.8]} 23... Rbc8
{[%clk 0:00:26.8]} 24. Qxb5 {[%clk 0:00:55.3]} 24... Rb8 {[%clk 0:00:24.4]} 25.
Nxb6 {[%clk 0:00:45.6]} 25... Rbxb6 {[%clk 0:00:25.3]} 26. Qd3 {[%clk
0:00:45.8]} 26... a5 {[%clk 0:00:21.1]} 27. Rd2 {[%clk 0:00:42]} 27... Qa7
{[%clk 0:00:18.5]} 28. Rhd1 {[%clk 0:00:31]} 28... a4 {[%clk 0:00:18.5]} 29. b4
{[%clk 0:00:31.3]} 29... a3+ {[%clk 0:00:17.8]} 30. Ka1 {[%clk 0:00:30.4]} 30...
h5 {[%clk 0:00:16.7]} 31. g4 {[%clk 0:00:29.7]} 31... hxg4 {[%clk 0:00:16.5]}
32. hxg4 {[%clk 0:00:30.6]} 32... Qc7 {[%clk 0:00:16]} 33. Qd4+ {[%clk
0:00:30.7]} 33... e5 {[%clk 0:00:15.7]} 34. fxe5 {[%clk 0:00:24.2]} 34... dxe5
{[%clk 0:00:16.6]} 35. Qf2 {[%clk 0:00:24.4]} 35... Rxc3 {[%clk 0:00:15.8]} 36.
Rd7 {[%clk 0:00:24.6]} 36... Rc1+ {[%clk 0:00:15.8]} 37. Rxc1 {[%clk 0:00:23.2]}
37... Qxc1# {[%clk 0:00:16.7]} 0-1

[Event "Late-Titled-Tuesday-Blitz-June-04-2024"]
[Site "Chess.com"]
[Date "2024.06.04"]
[Round "3"]
[White "ExchangeAB"]
[Black "enestnrvrd"]
[Result "0-1"]
[WhiteElo "2463"]
[BlackElo "2663"]
[TimeControl "180+1"]
[EndTime "14:27:27 PDT"]
[Termination "enestnrvrd won by resignation"]

1. d4 {[%clk 0:03:00.8]} 1... Nf6 {[%clk 0:02:58.7]} 2. Nf3 {[%clk 0:03:01.3]}
2... d5 {[%clk 0:02:58.1]} 3. Bf4 {[%clk 0:03:01.5]} 3... c6 {[%clk 0:02:55.2]}
4. e3 {[%clk 0:03:00.9]} 4... Bg4 {[%clk 0:02:55.3]} 5. Nbd2 {[%clk 0:03:00.5]}
5... e6 {[%clk 0:02:55.6]} 6. c3 {[%clk 0:03:00.6]} 6... Bd6 {[%clk 0:02:55.4]}
7. h3 {[%clk 0:02:59.6]} 7... Bh5 {[%clk 0:02:52.2]} 8. Qb3 {[%clk 0:02:56.6]}
8... Bxf4 {[%clk 0:02:48.8]} 9. exf4 {[%clk 0:02:52.5]} 9... Qb6 {[%clk
0:02:47.5]} 10. Ne5 {[%clk 0:02:49.8]} 10... Nbd7 {[%clk 0:02:44.1]} 11. Bd3
{[%clk 0:02:49.4]} 11... Bg6 {[%clk 0:02:40.4]} 12. Bxg6 {[%clk 0:02:48.3]}
12... hxg6 {[%clk 0:02:40]} 13. O-O {[%clk 0:02:48.5]} 13... Rh4 {[%clk
0:02:11.4]} 14. Nd3 {[%clk 0:02:37.1]} 14... Ne4 {[%clk 0:01:39.8]} 15. Nf3
{[%clk 0:02:30.5]} 15... Rh8 {[%clk 0:01:33.7]} 16. Rad1 {[%clk 0:02:24.9]}
16... Qxb3 {[%clk 0:01:25.3]} 17. axb3 {[%clk 0:02:24.8]} 17... Ke7 {[%clk
0:01:26.2]} 18. b4 {[%clk 0:02:23.9]} 18... a5 {[%clk 0:01:25]} 19. Ra1 {[%clk
0:02:20.2]} 19... axb4 {[%clk 0:01:24.2]} 20. Nxb4 {[%clk 0:02:20.2]} 20... Nb6
{[%clk 0:01:20.2]} 21. Ne5 {[%clk 0:02:12.5]} 21... Nd6 {[%clk 0:01:18.7]} 22.
Nbd3 {[%clk 0:02:06.4]} 22... Nbc4 {[%clk 0:01:17.2]} 23. Nxc4 {[%clk
0:02:06.3]} 23... Nxc4 {[%clk 0:01:16.5]} 24. g3 {[%clk 0:01:56.8]} 24... Kd6
{[%clk 0:00:54]} 25. Kg2 {[%clk 0:01:54.9]} 25... b6 {[%clk 0:00:53.2]} 26. Ne5
{[%clk 0:01:51.3]} 26... Nxe5 {[%clk 0:00:51.8]} 27. fxe5+ {[%clk 0:01:50.3]}
27... Kc7 {[%clk 0:00:52.3]} 28. f4 {[%clk 0:01:48.9]} 28... c5 {[%clk
0:00:51.5]} 29. g4 {[%clk 0:01:48.5]} 29... Kc6 {[%clk 0:00:43.6]} 30. Kg3
{[%clk 0:01:48.2]} 30... Kb5 {[%clk 0:00:41.6]} 31. Rxa8 {[%clk 0:01:35.4]}
31... Rxa8 {[%clk 0:00:40.4]} 32. f5 {[%clk 0:01:36.3]} 32... gxf5 {[%clk
0:00:37.2]} 33. gxf5 {[%clk 0:01:36.3]} 33... cxd4 {[%clk 0:00:37.7]} 34. cxd4
{[%clk 0:01:36]} 34... Kc4 {[%clk 0:00:38.4]} 35. fxe6 {[%clk 0:01:31.8]} 35...
fxe6 {[%clk 0:00:37.8]} 36. Rf4 {[%clk 0:01:29.2]} 36... Ra1 {[%clk 0:00:37.5]}
37. Kh4 {[%clk 0:01:26.2]} 37... Rd1 {[%clk 0:00:35.4]} 38. Kg5 {[%clk
0:01:19.8]} 38... Rxd4 {[%clk 0:00:35.1]} 39. Rf3 {[%clk 0:01:11.2]} 39... Re4
{[%clk 0:00:33.8]} 40. Kg6 {[%clk 0:01:10.3]} 40... Rxe5 {[%clk 0:00:33.1]} 41.
Kxg7 {[%clk 0:01:10.5]} 41... Re1 {[%clk 0:00:32.2]} 42. Kf6 {[%clk 0:01:07.7]}
42... d4 {[%clk 0:00:32]} 43. h4 {[%clk 0:01:08]} 43... d3 {[%clk 0:00:31.1]}
44. Rf2 {[%clk 0:01:06.2]} 44... Re2 {[%clk 0:00:29.5]} 45. Rf4+ {[%clk
0:00:59.1]} 45... Kb3 {[%clk 0:00:28.6]} 46. Rd4 {[%clk 0:00:59.2]} 46... Kc2
{[%clk 0:00:26.9]} 47. h5 {[%clk 0:00:59.5]} 47... e5 {[%clk 0:00:27.4]} 48. Rd5
{[%clk 0:00:56.1]} 48... e4 {[%clk 0:00:27.5]} 49. h6 {[%clk 0:00:56.6]} 49...
d2 {[%clk 0:00:25.2]} 50. h7 {[%clk 0:00:56.6]} 50... Rh2 {[%clk 0:00:25.4]} 51.
Kg6 {[%clk 0:00:54.2]} 51... d1=Q {[%clk 0:00:25.2]} 0-1

[Event "Late-Titled-Tuesday-Blitz-June-04-2024"]
[Site "Chess.com"]
[Date "2024.06.04"]
[Round "3"]
[White "mfschulz"]
[Black "guillembaches"]
[Result "0-1"]
[WhiteElo "2236"]
[BlackElo "2491"]
[TimeControl "180+1"]
[EndTime "14:27:29 PDT"]
[Termination "guillembaches won by resignation"]

1. d4 {[%clk 0:03:00.9]} 1... Nf6 {[%clk 0:02:59.2]} 2. Bg5 {[%clk 0:03:00.1]}
2... e6 {[%clk 0:02:59.5]} 3. Nd2 {[%clk 0:02:58.9]} 3... h6 {[%clk 0:02:59.9]}
4. Bh4 {[%clk 0:02:58.1]} 4... g5 {[%clk 0:02:58.8]} 5. Bg3 {[%clk 0:02:57.6]}
5... d6 {[%clk 0:02:57.8]} 6. e3 {[%clk 0:02:57]} 6... Bg7 {[%clk 0:02:56.9]} 7.
h4 {[%clk 0:02:57.1]} 7... g4 {[%clk 0:02:55.8]} 8. h5 {[%clk 0:02:57.2]} 8...
Qe7 {[%clk 0:02:53.5]} 9. Be2 {[%clk 0:02:54.2]} 9... e5 {[%clk 0:02:53.4]} 10.
dxe5 {[%clk 0:02:52.9]} 10... dxe5 {[%clk 0:02:53.2]} 11. c3 {[%clk 0:02:52.6]}
11... Nc6 {[%clk 0:02:50.6]} 12. Bb5 {[%clk 0:02:51]} 12... Bd7 {[%clk
0:02:47.1]} 13. Ne2 {[%clk 0:02:44.9]} 13... O-O-O {[%clk 0:02:45.5]} 14. Qa4
{[%clk 0:02:44.1]} 14... Kb8 {[%clk 0:02:44]} 15. O-O-O {[%clk 0:02:42.4]} 15...
a6 {[%clk 0:02:38.7]} 16. Bc4 {[%clk 0:02:30.7]} 16... Nd4 {[%clk 0:02:04.6]}
17. Qb4 {[%clk 0:02:25.6]} 17... c5 {[%clk 0:02:02.3]} 18. Qa5 {[%clk
0:02:17.7]} 18... Nxe2+ {[%clk 0:01:53.3]} 19. Bxe2 {[%clk 0:02:15.8]} 19... Bc6
{[%clk 0:01:53.4]} 20. f3 {[%clk 0:02:10.3]} 20... gxf3 {[%clk 0:01:51.1]} 21.
Bxf3 {[%clk 0:02:10.2]} 21... Nd5 {[%clk 0:01:46.4]} 22. Rhe1 {[%clk 0:02:00.3]}
22... Rhe8 {[%clk 0:01:39.1]} 23. Nc4 {[%clk 0:01:57.7]} 23... f6 {[%clk
0:01:33.9]} 24. Bf2 {[%clk 0:01:47.3]} 24... Bf8 {[%clk 0:01:32.8]} 25. Qa3
{[%clk 0:01:20.1]} 25... e4 {[%clk 0:01:24.5]} 26. Be2 {[%clk 0:01:14.8]} 26...
Ka7 {[%clk 0:01:19]} 27. Qb3 {[%clk 0:01:10.1]} 27... Qc7 {[%clk 0:01:16.4]} 28.
a3 {[%clk 0:01:04]} 28... b5 {[%clk 0:01:16.1]} 29. Nd2 {[%clk 0:01:02.2]} 29...
c4 {[%clk 0:01:14.9]} 30. Qc2 {[%clk 0:01:01.8]} 30... f5 {[%clk 0:01:13]} 31.
Bh4 {[%clk 0:01:00.2]} 31... Be7 {[%clk 0:01:04]} 32. Bf2 {[%clk 0:01:00.1]}
32... Nf6 {[%clk 0:00:58.9]} 33. Nf1 {[%clk 0:00:59.3]} 33... Rxd1+ {[%clk
0:00:57.5]} 34. Rxd1 {[%clk 0:00:59.6]} 34... Rd8 {[%clk 0:00:58]} 35. Rxd8
{[%clk 0:00:58.3]} 35... Qxd8 {[%clk 0:00:58.4]} 36. Qd2 {[%clk 0:00:58.1]}
36... Qxd2+ {[%clk 0:00:58.3]} 37. Kxd2 {[%clk 0:00:58.2]} 37... Be8 {[%clk
0:00:58.1]} 38. Ng3 {[%clk 0:00:57.3]} 38... Bd7 {[%clk 0:00:57.3]} 39. Bd1
{[%clk 0:00:54.9]} 39... Bd6 {[%clk 0:00:57.3]} 40. Ne2 {[%clk 0:00:54.6]} 40...
Ng4 {[%clk 0:00:55.7]} 41. Bg1 {[%clk 0:00:52.3]} 41... Be7 {[%clk 0:00:52.2]}
42. Nd4 {[%clk 0:00:50.8]} 42... Ne5 {[%clk 0:00:51.3]} 43. Bh2 {[%clk
0:00:49.6]} 43... Nd3 {[%clk 0:00:50.3]} 44. Kc2 {[%clk 0:00:47]} 44... Ne1+
{[%clk 0:00:47.7]} 45. Kd2 {[%clk 0:00:45.4]} 45... Nxg2 {[%clk 0:00:47.9]} 46.
Ke2 {[%clk 0:00:44]} 46... Bg5 {[%clk 0:00:45.8]} 47. Kf2 {[%clk 0:00:37.7]}
47... Nxe3 {[%clk 0:00:42.9]} 48. Be5 {[%clk 0:00:35.9]} 48... Nxd1+ {[%clk
0:00:42.2]} 0-1

[Event "Late-Titled-Tuesday-Blitz-June-04-2024"]
[Site "Chess.com"]
[Date "2024.06.04"]
[Round "3"]
[White "djano"]
[Black "Niteshch"]
[Result "0-1"]
[WhiteElo "2617"]
[BlackElo "2382"]
[TimeControl "180+1"]
[EndTime "14:27:34 PDT"]
[Termination "Niteshch won by resignation"]

1. e4 {[%clk 0:03:00.9]} 1... c5 {[%clk 0:02:59.3]} 2. Nc3 {[%clk 0:03:00.7]}
2... Nc6 {[%clk 0:02:59.3]} 3. Bb5 {[%clk 0:03:00.2]} 3... Nd4 {[%clk
0:02:59.6]} 4. Nf3 {[%clk 0:03:00.1]} 4... a6 {[%clk 0:02:59.7]} 5. Bd3 {[%clk
0:02:59.3]} 5... g6 {[%clk 0:02:41.1]} 6. b4 {[%clk 0:02:58.8]} 6... cxb4 {[%clk
0:02:25.1]} 7. Nd5 {[%clk 0:02:54.3]} 7... Nxf3+ {[%clk 0:02:24.3]} 8. Qxf3
{[%clk 0:02:55.2]} 8... Bg7 {[%clk 0:02:24.2]} 9. Rb1 {[%clk 0:02:53.9]} 9... e6
{[%clk 0:02:20.3]} 10. Ne3 {[%clk 0:02:53.8]} 10... Ne7 {[%clk 0:02:14.7]} 11.
Rxb4 {[%clk 0:02:45.6]} 11... d5 {[%clk 0:02:14.5]} 12. h4 {[%clk 0:02:34.9]}
12... d4 {[%clk 0:02:07]} 13. Nc4 {[%clk 0:02:21.8]} 13... b5 {[%clk 0:02:02.1]}
14. Na3 {[%clk 0:01:50.7]} 14... Nc6 {[%clk 0:01:47.7]} 15. Rb1 {[%clk
0:01:50.1]} 15... Ne5 {[%clk 0:01:43.6]} 16. Qg3 {[%clk 0:01:50.3]} 16... h5
{[%clk 0:01:31.7]} 17. f4 {[%clk 0:01:40.7]} 17... Ng4 {[%clk 0:01:26]} 18. Be2
{[%clk 0:01:38.1]} 18... e5 {[%clk 0:01:17.6]} 19. O-O {[%clk 0:01:35]} 19...
exf4 {[%clk 0:01:11.2]} 20. Qxf4 {[%clk 0:01:30.5]} 20... Be6 {[%clk 0:01:06]}
21. Nxb5 {[%clk 0:01:13.1]} 21... axb5 {[%clk 0:01:01.9]} 22. Bxb5+ {[%clk
0:01:14]} 22... Kf8 {[%clk 0:01:00.7]} 23. Bc6 {[%clk 0:01:07.6]} 23... d3
{[%clk 0:00:51.8]} 24. c3 {[%clk 0:01:05.1]} 24... Be5 {[%clk 0:00:46.5]} 25.
Qf3 {[%clk 0:01:03.2]} 25... Qxh4 {[%clk 0:00:40.2]} 26. Qh3 {[%clk 0:00:53.9]}
26... Bh2+ {[%clk 0:00:39.4]} 27. Kh1 {[%clk 0:00:54]} 27... Nf2+ {[%clk
0:00:39.7]} 28. Rxf2 {[%clk 0:00:54.3]} 28... Bxh3 {[%clk 0:00:39.9]} 29. Kxh2
{[%clk 0:00:30]} 29... Bd7+ {[%clk 0:00:39.5]} 30. Kg1 {[%clk 0:00:29.3]} 30...
Bxc6 {[%clk 0:00:39.8]} 31. Rb6 {[%clk 0:00:23.8]} 31... Qxe4 {[%clk 0:00:37.9]}
32. a3 {[%clk 0:00:18.3]} 32... Kg7 {[%clk 0:00:35.6]} 33. Rb4 {[%clk
0:00:17.2]} 33... Qe6 {[%clk 0:00:32.6]} 34. c4 {[%clk 0:00:16.4]} 34... Rhb8
{[%clk 0:00:31.9]} 35. Bb2+ {[%clk 0:00:16.8]} 35... Kg8 {[%clk 0:00:32.1]} 36.
Bc3 {[%clk 0:00:16.9]} 36... Rxb4 {[%clk 0:00:31]} 37. axb4 {[%clk 0:00:17.8]}
37... Ra1+ {[%clk 0:00:30.7]} 38. Kh2 {[%clk 0:00:18]} 38... Re1 {[%clk
0:00:29]} 39. b5 {[%clk 0:00:16.8]} 39... Re2 {[%clk 0:00:27.2]} 40. Bd4 {[%clk
0:00:12]} 40... Rxf2 {[%clk 0:00:26.6]} 41. Bxf2 {[%clk 0:00:12.9]} 41... Qxc4
{[%clk 0:00:25.9]} 42. b6 {[%clk 0:00:12]} 42... Qd5 {[%clk 0:00:25.4]} 0-1

[Event "Late-Titled-Tuesday-Blitz-June-04-2024"]
[Site "Chess.com"]
[Date "2024.06.04"]
[Round "3"]
[White "szachmistrz2500"]
[Black "glucolisis04"]
[Result "1-0"]
[WhiteElo "2503"]
[BlackElo "2261"]
[TimeControl "180+1"]
[EndTime "14:27:34 PDT"]
[Termination "szachmistrz2500 won by resignation"]

1. e4 {[%clk 0:03:00.9]} 1... c5 {[%clk 0:03:00.6]} 2. Nf3 {[%clk 0:02:59.6]}
2... Nc6 {[%clk 0:03:00.3]} 3. Bb5 {[%clk 0:02:58.9]} 3... Nf6 {[%clk
0:02:59.7]} 4. d3 {[%clk 0:02:56.1]} 4... Qa5+ {[%clk 0:02:59.8]} 5. Nc3 {[%clk
0:02:54.7]} 5... Nd4 {[%clk 0:03:00.4]} 6. Bc4 {[%clk 0:02:52.6]} 6... b5 {[%clk
0:03:00.4]} 7. Bb3 {[%clk 0:02:47.8]} 7... Nxb3 {[%clk 0:03:00.6]} 8. cxb3
{[%clk 0:02:47.4]} 8... d6 {[%clk 0:02:59.7]} 9. O-O {[%clk 0:02:46.3]} 9... Bb7
{[%clk 0:02:55.9]} 10. Bg5 {[%clk 0:02:36.5]} 10... e6 {[%clk 0:02:51.3]} 11.
Bxf6 {[%clk 0:02:35]} 11... gxf6 {[%clk 0:02:51.3]} 12. Nh4 {[%clk 0:02:30.8]}
12... b4 {[%clk 0:02:36.8]} 13. Ne2 {[%clk 0:02:28.4]} 13... Qb6 {[%clk
0:02:20.2]} 14. Kh1 {[%clk 0:02:24]} 14... Be7 {[%clk 0:02:17.4]} 15. f4 {[%clk
0:02:18.8]} 15... a5 {[%clk 0:02:03.3]} 16. f5 {[%clk 0:02:16]} 16... e5 {[%clk
0:01:59.6]} 17. Ng3 {[%clk 0:02:14.2]} 17... Ba6 {[%clk 0:01:47.4]} 18. Rc1
{[%clk 0:02:07.4]} 18... Qb5 {[%clk 0:01:42.3]} 19. Rc4 {[%clk 0:02:07]} 19...
Qd7 {[%clk 0:01:37.6]} 20. Qh5 {[%clk 0:02:06.2]} 20... Bxc4 {[%clk 0:01:32.6]}
21. bxc4 {[%clk 0:02:06.1]} 21... Rf8 {[%clk 0:01:03]} 22. Qxh7 {[%clk
0:02:00.2]} 22... O-O-O {[%clk 0:01:03.5]} 23. Nf3 {[%clk 0:01:50.7]} 23... Kb7
{[%clk 0:00:53.1]} 24. Rg1 {[%clk 0:01:42.8]} 24... Ra8 {[%clk 0:00:45.3]} 25.
Nf1 {[%clk 0:01:41.9]} 25... Bd8 {[%clk 0:00:40.9]} 26. Qh4 {[%clk 0:01:34.9]}
26... Qe7 {[%clk 0:00:32.8]} 27. Ne3 {[%clk 0:01:33.8]} 27... Bb6 {[%clk
0:00:23.8]} 28. Nd5 {[%clk 0:01:33.4]} 28... Qd8 {[%clk 0:00:24.3]} 29. Qxf6
{[%clk 0:01:21.3]} 29... Qxf6 {[%clk 0:00:23.7]} 30. Nxf6 {[%clk 0:01:22.2]}
30... a4 {[%clk 0:00:20.5]} 31. g4 {[%clk 0:01:20.8]} 31... Rh8 {[%clk
0:00:20.6]} 32. h4 {[%clk 0:01:19.6]} 32... Bd8 {[%clk 0:00:17.3]} 33. Nh5
{[%clk 0:01:18.6]} 33... Be7 {[%clk 0:00:11.8]} 34. Kh2 {[%clk 0:01:16.7]} 34...
Rag8 {[%clk 0:00:12.2]} 35. Kh3 {[%clk 0:01:16.1]} 35... a3 {[%clk 0:00:10.9]}
36. b3 {[%clk 0:01:15.3]} 36... Kc7 {[%clk 0:00:10.6]} 37. f6 {[%clk 0:01:13.9]}
37... Bd8 {[%clk 0:00:09.9]} 38. Ng5 {[%clk 0:01:08.2]} 38... Rh6 {[%clk
0:00:07.2]} 39. Nxf7 {[%clk 0:01:07.2]} 39... Rhg6 {[%clk 0:00:07.9]} 40. Nxd8
{[%clk 0:01:05.6]} 40... Kxd8 {[%clk 0:00:07.8]} 41. g5 {[%clk 0:01:05.8]} 41...
Rh8 {[%clk 0:00:02.6]} 42. Kg4 {[%clk 0:01:05.3]} 42... Rgg8 {[%clk 0:00:01.9]}
43. Ng7 {[%clk 0:01:04.7]} 43... Rf8 {[%clk 0:00:02.3]} 44. h5 {[%clk
0:01:03.9]} 44... Kd7 {[%clk 0:00:03.2]} 45. h6 {[%clk 0:01:01.8]} 45... Ra8
{[%clk 0:00:02.5]} 46. Kf5 {[%clk 0:01:01.5]} 46... Rae8 {[%clk 0:00:01.8]} 47.
g6 {[%clk 0:01:01.2]} 47... Ref8 {[%clk 0:00:01.3]} 48. h7 {[%clk 0:00:58.6]}
48... Re8 {[%clk 0:00:01.1]} 1-0

[Event "Late-Titled-Tuesday-Blitz-June-04-2024"]
[Site "Chess.com"]
[Date "2024.06.04"]
[Round "3"]
[White "talaicito"]
[Black "TimGrutter03"]
[Result "1-0"]
[WhiteElo "2198"]
[BlackElo "2509"]
[TimeControl "180+1"]
[EndTime "14:27:36 PDT"]
[Termination "talaicito won on time"]

1. d4 {[%clk 0:03:00.9]} 1... d6 {[%clk 0:02:59]} 2. e4 {[%clk 0:03:00.6]} 2...
Nf6 {[%clk 0:02:56.9]} 3. Nc3 {[%clk 0:03:00.7]} 3... e5 {[%clk 0:02:56.3]} 4.
f4 {[%clk 0:02:55.8]} 4... Nbd7 {[%clk 0:02:45.8]} 5. Nf3 {[%clk 0:02:51.8]}
5... c6 {[%clk 0:02:42.1]} 6. dxe5 {[%clk 0:02:45.3]} 6... dxe5 {[%clk
0:02:41.6]} 7. fxe5 {[%clk 0:02:33.1]} 7... Ng4 {[%clk 0:02:35.8]} 8. Bg5 {[%clk
0:02:25.9]} 8... Qb6 {[%clk 0:02:24.2]} 9. Qd2 {[%clk 0:02:17.2]} 9... h6 {[%clk
0:02:14.7]} 10. Bf4 {[%clk 0:02:14.5]} 10... g5 {[%clk 0:02:07.1]} 11. h3 {[%clk
0:02:13.8]} 11... gxf4 {[%clk 0:01:54.8]} 12. hxg4 {[%clk 0:02:13.2]} 12... Qxb2
{[%clk 0:01:45]} 13. Rb1 {[%clk 0:02:11.8]} 13... Qa3 {[%clk 0:01:44.4]} 14. Bc4
{[%clk 0:01:47.2]} 14... Bb4 {[%clk 0:01:34.2]} 15. Rb3 {[%clk 0:01:42.2]} 15...
Qa5 {[%clk 0:01:34.1]} 16. a3 {[%clk 0:01:25.1]} 16... Bxa3 {[%clk 0:01:27.2]}
17. Qxf4 {[%clk 0:01:21.5]} 17... Bb4 {[%clk 0:01:13.1]} 18. Qxf7+ {[%clk
0:01:02.3]} 18... Kd8 {[%clk 0:01:13.3]} 19. Kd2 {[%clk 0:00:56.1]} 19... Rf8
{[%clk 0:01:06.1]} 20. Qg7 {[%clk 0:00:51.4]} 20... b5 {[%clk 0:00:45.7]} 21.
Be6 {[%clk 0:00:32.5]} 21... Re8 {[%clk 0:00:31.1]} 22. Rxh6 {[%clk 0:00:26.9]}
22... Nc5 {[%clk 0:00:21.8]} 23. Bxc8 {[%clk 0:00:19.4]} 23... Bxc3+ {[%clk
0:00:18]} 24. Ke2 {[%clk 0:00:14]} 24... Kxc8 {[%clk 0:00:13.7]} 25. Rxc6+
{[%clk 0:00:12.9]} 25... Kd8 {[%clk 0:00:05.5]} 26. Rxc5 {[%clk 0:00:12.9]}
26... Re7 {[%clk 0:00:03]} 27. Qf8+ {[%clk 0:00:11.6]} 27... Kd7 {[%clk
0:00:01.9]} 28. Qxa8 {[%clk 0:00:11.1]} 28... Qa1 {[%clk 0:00:01.4]} 29. Qd5+
{[%clk 0:00:10.6]} 1-0